[Event "Grand Prix Romania 1st Stage 2024"]
[Site "Bucuresti"]
[Date "2024.03.23"]
[Round "1.32"]
[White "Pandelescu, Maria-Catalina"]
[Black "Bulmaga, Irina"]
[Result "0-1"]
[ECO "C27"]
[WhiteElo "1701"]
[BlackElo "2429"]
[Annotator "RC"]
[PlyCount "74"]
[EventDate "2024.03.20"]
[EventCountry "ROU"]
[SourceTitle "playchess.com"]
[Source "ChessBase"]
[SourceQuality "1"]
[TimeControl "900+5"]

1. e4 {[%emt 0:00:02]} e5 {[%emt 0:00:02]} 2. Bc4 {[%emt 0:00:07]} Nf6 {[%emt 0:00:05]} 3. Nc3 {[%emt 0:00:08]} Bc5 {[%emt 0:00:10]} 4. Nge2 {[%emt 0:00:23]} c6 {[%emt 0:00:18]} 5. d4 {[%emt 0:00:33]} exd4 {[%emt 0:00:36]} 6. Nxd4 {[%emt 0:00:04]} O-O {[%emt 0:00:10]} 7. O-O {[%emt 0:00:13]} d5 {[%emt 0:00:05]} 8. exd5 {[%emt 0:00:07]} cxd5 {[%emt 0:00:02]} 9. Bb3 {[%emt 0:01:17]} Nc6 {[%emt 0:00:25]} 10. Be3 {[%emt 0:00:32]} Bb6 {[%emt 0:00:26]} 11. h3 {[%emt 0:00:28]} Ne5 {[%emt 0:00:47]} 12. Bg5 {[%emt 0:00:33]} Be6 {[%emt 0:01:54]} 13. Re1 {[%emt 0:01:24]} Bc7 {[%emt 0:00:21]} 14. Bxf6 {[%emt 0:00:20]} Qxf6 {[%emt 0:00:08]} 15. Bxd5 {[%emt 0:00:43]} Rad8 {[%emt 0:00:25]} 16. Ne4 {[%emt 0:00:45]} Qg6 {[%emt 0:00:26]} 17. Bxe6 {[%emt 0:00:11]} Rxd4 {[%emt 0:00:19]} 18. Bxf7+ {[%emt 0:02:14]} Rxf7 {[%emt 0:00:15]} 19. Qe2 {[%emt 0:00:32]} Nf3+ {[%emt 0:00:17]} 20. Kh1 {[%emt 0:00:25]} Nxe1 {[%emt 0:00:04]} 21. Rxe1 {[%emt 0:00:03]} Rxe4 {[%emt 0:00:08]} 22. Qxe4 {[%emt 0:00:05]} Qxe4 {[%emt 0:00:04]} 23. Rxe4 {[%emt 0:00:02]} Rxf2 {[%emt 0:00:02]} 24. Kg1 {[%emt 0:00:32]} Rxc2 {[%emt 0:00:04]} 25. Rb4 {[%emt 0:00:03]} Bb6+ {[%emt 0:00:06]} 26. Kf1 {[%emt 0:00:12]} Rf2+ {[%emt 0:00:05]} 27. Ke1 {[%emt 0:00:11]} Rxg2 {[%emt 0:00:03]} 28. Rb3 {[%emt 0:00:20]} h5 {[%emt 0:00:06]} 29. a4 {[%emt 0:00:09]} h4 {[%emt 0:00:12]} 30. Kf1 {[%emt 0:00:21]} Rg3 {[%emt 0:00:07]} 31. Rxg3 {[%emt 0:00:05]} hxg3 {[%emt 0:00:02]} 32. Kg2 {[%emt 0:00:01]} Bc7 {[%emt 0:00:01]} 33. b4 {[%emt 0:00:03]} Kf7 {[%emt 0:00:02]} 34. b5 {[%emt 0:00:05]} Ke6 {[%emt 0:00:02]} 35. Kf3 {[%emt 0:00:03]} Kd5 {[%emt 0:00:01]} 36. h4 {[%emt 0:00:07]} Kc4 {[%emt 0:00:02]} 37. h5 {[%emt 0:00:04]} Kb4 {[%emt 0:00:02]} 0-1

[Event "Grand Prix Romania 1st Stage 2024"]
[Site "Bucuresti"]
[Date "2024.03.23"]
[Round "1.33"]
[White "Stoleriu, George"]
[Black "Zlate-Ion, Matei"]
[Result "1-0"]
[ECO "B23"]
[WhiteElo "2391"]
[BlackElo "1842"]
[Annotator "RC"]
[PlyCount "55"]
[EventDate "2024.03.20"]
[EventCountry "ROU"]
[SourceTitle "playchess.com"]
[Source "ChessBase"]
[SourceQuality "1"]
[TimeControl "900+5"]

1. e4 {[%emt 0:00:01]} c5 {[%emt 0:00:01]} 2. Nc3 {[%emt 0:00:03]} Nc6 {[%emt 0:00:01]} 3. Bb5 {[%emt 0:00:02]} Nd4 {[%emt 0:00:04]} 4. Bc4 {[%emt 0:00:01]} e6 {[%emt 0:00:28]} 5. Nge2 {[%emt 0:00:01]} a6 {[%emt 0:00:46]} 6. d3 {[%emt 0:00:13]} Ne7 {[%emt 0:00:43]} 7. Nxd4 {[%emt 0:00:04]} cxd4 {[%emt 0:00:03]} 8. Ne2 {[%emt 0:00:02]} Nc6 {[%emt 0:01:52]} 9. O-O {[%emt 0:00:03]} g6 {[%emt 0:00:15]} 10. f4 {[%emt 0:00:17]} Bg7 {[%emt 0:00:07]} 11. a3 {[%emt 0:00:55]} O-O {[%emt 0:00:21]} 12. Ng3 {[%emt 0:00:10]} b5 {[%emt 0:00:54]} 13. Ba2 {[%emt 0:00:03]} Bb7 {[%emt 0:00:05]} 14. f5 {[%emt 0:00:10]} Ne5 {[%emt 0:00:35]} 15. Bf4 {[%emt 0:00:17]} d5 {[%emt 0:00:17]} 16. Qe2 {[%emt 0:03:32]} dxe4 {[%emt 0:09:53]} 17. fxe6 {[%emt 0:00:31]} exd3 {[%emt 0:00:00]} 18. cxd3 {[%emt 0:00:11]} Nc6 {[%emt 0:00:00]} 19. exf7+ {[%emt 0:00:55]} Kh8 {[%emt 0:00:00]} 20. Ne4 {[%emt 0:00:17]} Ne7 {[%emt 0:00:00]} 21. Nc5 {[%emt 0:00:17]} Bd5 {[%emt 0:00:00]} 22. Bg5 {[%emt 0:00:02]} Bxa2 {[%emt 0:00:00]} 23. Bxe7 {[%emt 0:00:07]} Qd5 {[%emt 0:00:00]} 24. Bxf8 {[%emt 0:00:20]} Rxf8 {[%emt 0:00:00]} 25. b4 {[%emt 0:00:47]} Bb3 {[%emt 0:00:00]} 26. Qe7 {[%emt 0:00:25]} Rxf7 {[%emt 0:00:00]} 27. Qe8+ {[%emt 0:00:06]} Bf8 {[%emt 0:00:00]} 28. Nxb3 {[%emt 0:00:03]} 1-0

[Event "Grand Prix Romania 1st Stage 2024"]
[Site "Bucuresti"]
[Date "2024.03.23"]
[Round "1.34"]
[White "Charchenko, Dmytro"]
[Black "Vedmediuc, Serghei"]
[Result "0-1"]
[ECO "A42"]
[WhiteElo "1737"]
[BlackElo "2452"]
[Annotator "TA"]
[PlyCount "68"]
[EventDate "2024.03.20"]
[EventCountry "ROU"]
[SourceTitle "playchess.com"]
[Source "ChessBase"]
[SourceQuality "1"]
[TimeControl "900+5"]

{[%evp 10,68,20,14,67,68,74,70,83,66,97,66,94,48,83,67,60,-62,-31,-62,-43,-172,-168,-168,-77,-97,-96,-90,-39,-46,-10,-14,0,-18,0,0,0,-22,0,-50,-13,-38,0,-41,-8,-209,-245,-237,-238,-547,-510,-537,-523,-6483,-2544,-6291,-6399,-6399,-5614,-29989,-29989]} 1. d4 {[%emt 0:00:03]} g6 {[%emt 0:00:06]} 2. c4 {[%emt 0:00:01]} Bg7 {[%emt 0:00:02]} 3. Nc3 {[%emt 0:00:08]} d6 {[%emt 0:00:02]} 4. e4 {[%emt 0:00:04]} Nc6 {[%emt 0:00:08]} 5. Nf3 {[%emt 0:00:13]} Bg4 {[%emt 0:00:33]} 6. Be3 {[%emt 0:03:15]} Bxf3 {[%emt 0:00:34]} ({Better is} 6... e5 $11 7. d5 Nd4) 7. gxf3 $14 {[%emt 0:00:01]} e5 {[%emt 0:00:02]} 8. dxe5 {[%emt 0:01:33]} Nxe5 {[%emt 0:01:51] White is slightly better.} 9. Be2 {[%emt 0:01:45]} Nf6 {[%emt 0:00:23]} 10. Qd2 {[%emt 0:00:23]} O-O {[%emt 0:00:39]} 11. Bh6 {[%emt 0:01:37]} (11. O-O-O $16) 11... a6 {[%emt 0:00:37]} 12. Bxg7 {[%emt 0:00:04]} Kxg7 {[%emt 0:00:02]} 13. Nd5 {[%emt 0:01:43] [#]} (13. O-O-O $14) 13... b5 $1 {[%emt 0:01:21]} 14. cxb5 {[%emt 0:00:54]} (14. O-O-O Nxd5) 14... axb5 {[%emt 0:00:07]} 15. Nxf6 {[%emt 0:01:11]} (15. f4 $15 Ned7 (15... Nxe4 16. Qd4 $14) 16. Qc3 (16. Bxb5 Nxe4 17. Qd4+ Ndf6 $15)) 15... Qxf6 $19 {[%emt 0:00:06]} ({And not} 15... Kxf6 16. f4 (16. Bxb5 $2 {loses.} Nxf3+ 17. Ke2 Nxd2 $19) 16... Nc4 17. Qc3+ Ke7 18. O-O $16) 16. f4 {[%emt 0:00:29]} Nd7 {[%emt 0:01:04]} (16... Nc6 $19 {has better winning chances.} 17. O-O Nd4) 17. O-O {[%emt 0:00:02]} Nc5 {[%emt 0:00:06]} 18. f3 {[%emt 0:00:51] [#]} b4 {[%emt 0:01:11] Black is more active.} 19. Bc4 $15 {[%emt 0:00:21]} Rab8 {[%emt 0:00:10]} 20. Rac1 {[%emt 0:00:38]} Rb6 {[%emt 0:00:43]} 21. Rc2 {[%emt 0:00:47]} Kg8 {[%emt 0:01:28]} 22. Qe3 {[%emt 0:00:27]} Rfb8 {[%emt 0:00:28]} 23. Bb3 {[%emt 0:00:06]} Re8 {[%emt 0:00:26]} 24. Qd2 {[%emt 0:00:06]} (24. Bc4 $11) 24... Re7 {[%emt 0:00:39]} 25. Rfc1 {[%emt 0:00:02][%cal Oe4e5]} Qh4 {[%emt 0:00:35]} 26. Rc4 {[%emt 0:00:12]} Rb8 {[%emt 0:00:16]} (26... Nxb3 {simplifies} 27. axb3 c5 28. Kg2 Re8) 27. Rxb4 $2 {[%emt 0:00:12]} (27. Rd4 $11 {and White has nothing to worry.}) 27... Rxb4 $19 {[%emt 0:00:06]} 28. Qxb4 {[%emt 0:00:01]} Nd3 {[%emt 0:00:46]} 29. Qb8+ $2 {[%emt 0:00:01]} (29. Qd2 Nxc1 30. Qxc1) 29... Kg7 {[%emt 0:00:01]} 30. Rf1 {[%emt 0:00:04] Repels Qf2+} Nxf4 {[%emt 0:00:09][%cal Oe7e4] ( -> ...Rxe4!)} 31. Qb4 {[%emt 0:00:20]} Qg5+ {[%emt 0:00:07]} 32. Kf2 {[%emt 0:00:01]} Nd3+ {[%emt 0:00:02]} 33. Ke2 {[%emt 0:00:01] White is weak on the dark squares} Nxb4 {[%emt 0:00:02]} 34. Rf2 {[%emt 0:00:07]} d5 {[%emt 0:00:07] Weighted Error Value: White=0.98/Black=0.27 (precise) .  Loses game:     	White=1     	---        Mistake:       	White=5     	Black=2      Inaccurate:     	White=4     	Black=8      OK:         	White=6     	Black=3      Best:        	White=1     	Black=3} 0-1

[Event "Grand Prix Romania 1st Stage 2024"]
[Site "Bucuresti"]
[Date "2024.03.23"]
[Round "1.35"]
[White "Nevednichy, Vladislav"]
[Black "Gazdaru, Rares"]
[Result "1-0"]
[ECO "B10"]
[WhiteElo "2445"]
[BlackElo "1884"]
[Annotator "RC"]
[PlyCount "102"]
[EventDate "2024.03.20"]
[EventCountry "ROU"]
[SourceTitle "playchess.com"]
[Source "ChessBase"]
[SourceQuality "1"]
[TimeControl "900+5"]

1. c4 {[%emt 0:00:01]} c6 {[%emt 0:00:03]} 2. e4 {[%emt 0:00:08]} d5 {[%emt 0:00:03]} 3. cxd5 {[%emt 0:00:03]} cxd5 {[%emt 0:00:01]} 4. exd5 {[%emt 0:00:01]} Nf6 {[%emt 0:00:02]} 5. Nc3 {[%emt 0:00:02]} Nxd5 {[%emt 0:00:09]} 6. Nf3 {[%emt 0:00:01]} Nxc3 {[%emt 0:00:23]} 7. bxc3 {[%emt 0:00:02]} g6 {[%emt 0:00:02]} 8. Bb5+ {[%emt 0:00:03]} Bd7 {[%emt 0:00:06]} 9. a4 {[%emt 0:00:22]} Bg7 {[%emt 0:00:09]} 10. O-O {[%emt 0:00:03]} O-O {[%emt 0:00:02]} 11. Re1 {[%emt 0:00:02]} a6 {[%emt 0:00:44]} 12. Bf1 {[%emt 0:00:13]} Nc6 {[%emt 0:00:23]} 13. d4 {[%emt 0:00:24]} Rc8 {[%emt 0:01:51]} 14. Bg5 {[%emt 0:00:13]} h6 {[%emt 0:00:18]} 15. Bh4 {[%emt 0:00:13]} g5 {[%emt 0:00:13]} 16. Bg3 {[%emt 0:00:07]} Bg4 {[%emt 0:00:06]} 17. h4 {[%emt 0:00:52]} e6 {[%emt 0:01:57]} 18. hxg5 {[%emt 0:00:04]} hxg5 {[%emt 0:00:03]} 19. Qd3 {[%emt 0:00:56]} Qd5 {[%emt 0:03:27]} 20. Ne5 {[%emt 0:00:30]} Bf5 {[%emt 0:01:55]} 21. Qe3 {[%emt 0:00:06]} Nxe5 {[%emt 0:00:11]} 22. Bxe5 {[%emt 0:00:24]} f6 {[%emt 0:00:03]} 23. c4 {[%emt 0:00:28]} Qd7 {[%emt 0:00:19]} 24. Bg3 {[%emt 0:00:06]} Rfd8 {[%emt 0:00:16]} 25. Red1 {[%emt 0:00:05]} Bf8 {[%emt 0:01:37]} 26. a5 {[%emt 0:00:36]} Bd6 {[%emt 0:00:03]} 27. Bxd6 {[%emt 0:00:52]} Qxd6 {[%emt 0:00:01]} 28. c5 {[%emt 0:00:02]} Qc7 {[%emt 0:00:01]} 29. Ra2 {[%emt 0:00:47]} Rd7 {[%emt 0:00:02]} 30. g3 {[%emt 0:00:47]} Rcd8 {[%emt 0:00:53]} 31. Rdd2 {[%emt 0:00:06]} Kg7 {[%emt 0:00:46]} 32. Bg2 {[%emt 0:00:03]} e5 {[%emt 0:00:23]} 33. d5 {[%emt 0:00:24]} e4 {[%emt 0:00:18]} 34. d6 {[%emt 0:00:12]} Qc6 {[%emt 0:00:07]} 35. g4 {[%emt 0:00:06]} Bg6 {[%emt 0:00:08]} 36. Rdc2 {[%emt 0:00:30]} Qd5 {[%emt 0:00:05]} 37. Rd2 {[%emt 0:00:12]} Qc6 {[%emt 0:00:04]} 38. Qd4 {[%emt 0:00:08]} Rc8 {[%emt 0:00:08]} 39. Rdc2 {[%emt 0:00:49]} Qb5 {[%emt 0:00:10]} 40. Bf1 {[%emt 0:00:19]} Qc6 {[%emt 0:00:16]} 41. Rc3 {[%emt 0:00:23]} Rh8 {[%emt 0:00:23]} 42. Re3 {[%emt 0:00:13]} Rh4 {[%emt 0:00:06]} 43. Rg3 {[%emt 0:00:24]} Qc8 {[%emt 0:00:10]} 44. Bg2 {[%emt 0:00:06]} Rd8 {[%emt 0:00:07]} 45. Rb2 {[%emt 0:00:03]} Rxg4 {[%emt 0:00:09]} 46. Rxg4 {[%emt 0:00:06]} Qxg4 {[%emt 0:00:01]} 47. Rxb7+ {[%emt 0:00:01]} Kh6 {[%emt 0:00:01]} 48. Qxf6 {[%emt 0:00:08]} Qd1+ {[%emt 0:00:01]} 49. Kh2 {[%emt 0:00:16]} Qh5+ {[%emt 0:00:16]} 50. Bh3 {[%emt 0:00:08]} Qe2 {[%emt 0:00:02]} 51. Rg7 {[%emt 0:00:15]} Qh5 {[%emt 0:00:16]} 1-0

[Event "Grand Prix Romania 1st Stage 2024"]
[Site "Bucuresti"]
[Date "2024.03.23"]
[Round "1.36"]
[White "Toba, Andreea-Valentina"]
[Black "Stepanencu, Nicodim-Cosmin"]
[Result "0-1"]
[ECO "A07"]
[WhiteElo "1768"]
[BlackElo "2278"]
[Annotator "RC"]
[PlyCount "82"]
[EventDate "2024.03.20"]
[EventCountry "ROU"]
[SourceTitle "playchess.com"]
[Source "ChessBase"]
[SourceQuality "1"]
[TimeControl "900+5"]

1. Nf3 {[%emt 0:00:03]} Nf6 {[%emt 0:00:05]} 2. g3 {[%emt 0:00:02]} d5 {[%emt 0:00:02]} 3. d3 {[%emt 0:00:12]} c6 {[%emt 0:00:13]} 4. Bg2 {[%emt 0:00:02]} Bg4 {[%emt 0:00:02]} 5. Bf4 {[%emt 0:00:20]} Qb6 {[%emt 0:00:11]} 6. Nbd2 {[%emt 0:01:22]} Nbd7 {[%emt 0:00:19]} 7. b3 {[%emt 0:01:54]} e6 {[%emt 0:00:15]} 8. c3 {[%emt 0:00:25]} a5 {[%emt 0:00:31]} 9. Qc2 {[%emt 0:00:07]} h6 {[%emt 0:00:50]} 10. O-O {[%emt 0:00:47]} Be7 {[%emt 0:00:27]} 11. e4 {[%emt 0:00:50]} O-O {[%emt 0:00:07]} 12. e5 {[%emt 0:00:49]} Nh7 {[%emt 0:00:03]} 13. Be3 {[%emt 0:01:42]} c5 {[%emt 0:00:37]} 14. d4 {[%emt 0:01:00]} cxd4 {[%emt 0:02:35]} 15. Bxd4 {[%emt 0:00:16]} Bc5 {[%emt 0:00:05]} 16. Bxc5 {[%emt 0:01:21]} Qxc5 {[%emt 0:00:05]} 17. Rfe1 {[%emt 0:01:06]} Rfc8 {[%emt 0:00:11]} 18. Rac1 {[%emt 0:00:20]} Nhf8 {[%emt 0:01:00]} 19. Nd4 {[%emt 0:00:07]} Qb6 {[%emt 0:01:07]} 20. Nb1 {[%emt 0:01:29]} Bh5 {[%emt 0:00:16]} 21. Na3 {[%emt 0:00:16]} Nc5 {[%emt 0:00:22]} 22. Bf1 {[%emt 0:00:33]} Bg6 {[%emt 0:00:46]} 23. Qb2 {[%emt 0:00:27]} Nfd7 {[%emt 0:00:27]} 24. Nab5 {[%emt 0:00:05]} Ne4 {[%emt 0:04:18]} 25. f3 {[%emt 0:00:01]} Nec5 {[%emt 0:00:10]} 26. Kg2 {[%emt 0:00:14]} Bd3 {[%emt 0:00:02]} 27. Re3 {[%emt 0:00:07]} Bxf1+ {[%emt 0:00:10]} 28. Rxf1 {[%emt 0:00:06]} a4 {[%emt 0:00:37]} 29. b4 {[%emt 0:00:24]} Na6 {[%emt 0:00:01]} 30. a3 {[%emt 0:00:11]} Rd8 {[%emt 0:00:53]} 31. Rfe1 {[%emt 0:00:05]} Nc7 {[%emt 0:00:04]} 32. Qe2 {[%emt 0:00:16]} Nxb5 {[%emt 0:00:03]} 33. Qxb5 {[%emt 0:00:01]} Qc7 {[%emt 0:00:03]} 34. Qd3 {[%emt 0:00:18]} Rac8 {[%emt 0:00:21]} 35. Nb5 {[%emt 0:00:42]} Qb8 36. Nd6 {[%emt 0:00:00]} Nxe5 {[%emt 0:00:05]} 37. Rxe5 {[%emt 0:00:00]} Qxd6 {[%emt 0:00:01]} 38. Qb5 {[%emt 0:00:00]} Qc6 {[%emt 0:00:03]} 39. Qxc6 {[%emt 0:00:04]} Rxc6 {[%emt 0:00:01]} 40. R5e3 {[%emt 0:00:04]} Rdc8 {[%emt 0:00:01]} 41. Rc1 {[%emt 0:00:00]} d4 {[%emt 0:00:01]} 0-1

[Event "Grand Prix Romania 1st Stage 2024"]
[Site "Bucuresti"]
[Date "2024.03.23"]
[Round "1.37"]
[White "Shuvalova, Polina"]
[Black "Tatar, Marius Lucian"]
[Result "1-0"]
[ECO "C49"]
[WhiteElo "2455"]
[BlackElo "1788"]
[Annotator "TA"]
[PlyCount "89"]
[EventDate "2024.03.20"]
[EventCountry "ROU"]
[SourceTitle "playchess.com"]
[Source "ChessBase"]
[SourceQuality "1"]
[TimeControl "900+5"]

{[%evp 17,88,11,20,17,4,2,24,3,27,15,40,41,60,50,52,47,62,36,72,59,146,100,100,78,100,0,119,63,60,8,405,394,375,390,344,186,321,92,77,0,-11,0,170,-114,388,170,838,574,1255,1221,1338,744,1252,719,725,704,29988,557,927,900,29992,29993,29996,29997,29997,29998,29998,29997,29997,29998,29998,29999,29999]} 1. e4 {[%emt 0:00:02]} e5 {[%emt 0:00:01]} 2. Nf3 {[%emt 0:00:02]} Nc6 {[%emt 0:00:01]} 3. Nc3 {[%emt 0:00:01]} Nf6 {[%emt 0:00:01]} 4. Bb5 {[%emt 0:00:03]} Bb4 {[%emt 0:00:11]} 5. O-O {[%emt 0:00:07]} O-O {[%emt 0:00:05]} 6. d3 {[%emt 0:00:03]} d6 {[%emt 0:00:07]} 7. Ne2 {[%emt 0:00:02]} Ne7 {[%emt 0:00:10]} 8. c3 {[%emt 0:00:02]} Ba5 {[%emt 0:00:03]} 9. Ng3 {[%emt 0:00:02]} Ng6 {[%emt 0:00:04]} 10. Re1 {[%emt 0:00:02]} c6 {[%emt 0:00:10]} 11. Ba4 {[%emt 0:00:01]} Bb6 {[%emt 0:00:08]} 12. h3 {[%emt 0:00:10] White has an edge.} h6 {[%emt 0:00:28]} 13. d4 {[%emt 0:00:03]} Be6 {[%emt 0:01:04]} 14. Bc2 {[%emt 0:00:06]} Qc7 {[%emt 0:01:05]} 15. Be3 {[%emt 0:00:09]} Rfe8 {[%emt 0:01:27]} 16. Qd2 {[%emt 0:00:19]} Rad8 {[%emt 0:00:34]} 17. Qc1 {[%emt 0:01:46]} a6 {[%emt 0:01:16]} 18. Nf5 {[%emt 0:00:12]} d5 {[%emt 0:03:42] [#]} (18... Bxf5 $14 19. exf5 e4) 19. Nxg7 $1 {[%emt 0:06:20][%mdl 512]} Kxg7 $16 {[%emt 0:00:18]} 20. Bxh6+ {[%emt 0:00:02]} Kg8 {[%emt 0:00:10]} 21. Bg5 {[%emt 0:00:06]} (21. Nxe5 $16 {Strongly threatening Qg5.} dxe4 22. Bxe4 Nxe4 (22... Nxe5 23. Qg5+ Ng6 24. Qxf6) 23. Rxe4) 21... Kg7 {[%emt 0:01:44] [#]} (21... Nxe4 $11 {keeps the balance.} 22. Bxe4 dxe4) 22. Nxe5 {[%emt 0:02:12]} ({White should try} 22. exd5 $1 $16 Rxd5 23. Bh6+ (23. Bxf6+ Kxf6 24. Be4 Rdd8 $17) 23... Kh8 24. Bxg6 fxg6 25. Qg5) 22... Nxe5 $14 {[%emt 0:01:56]} 23. Qf4 {[%emt 0:00:05]} (23. Bh6+ $14 Kh8 24. Bf4 (24. dxe5 Nxe4 25. Bxe4 dxe4 $16) (24. Qg5 $2 Nf3+ 25. gxf3 Rg8 $19)) 23... Ned7 $2 {[%emt 0:01:15][%mdl 8192]} (23... Nh5 $11 {and Black stays safe.} 24. Qxe5+ Qxe5 25. dxe5 dxe4 26. Bxd8 Rxd8) 24. e5 $18 {[%emt 0:00:05]} Ng8 {[%emt 0:00:43]} 25. Qh4 {[%emt 0:00:25]} Ra8 {[%emt 0:00:10]} (25... Nf8 26. Bf6+ Nxf6 27. exf6+ Kg8 28. Qh6) 26. b4 {[%emt 0:01:12]} (26. Re3 $142 {White wants to mate with Rg3.} Nxe5 (26... Nf8 27. Bf6+ Nxf6 28. exf6+ Kg8 29. Qh6) 27. Rxe5) 26... a5 {[%emt 0:00:02]} (26... Nf8 27. Bf6+ Nxf6 28. exf6+ Kg8 29. Qh6) (26... f5 $142) 27. a3 $2 {[%emt 0:00:07]} (27. Re3 $18 {Threatening mate with Rg3.} Nxe5 (27... Nf8 28. Bf6+ Nxf6 29. exf6+ Kg8 30. Qh6) 28. Rxe5) 27... axb4 $16 {[%emt 0:00:03] [#]} (27... Nf8 28. Bf6+ Nxf6 29. exf6+ Kg8 30. Qh6 (30. Qg5+ Ng6 31. Qh6 Qh2+ 32. Kxh2 Bc7+ 33. Kh1 axb4 34. Qg7#) (30. Qg5+ Ng6 31. Qh6 Qh2+ 32. Kxh2 Bc7+ 33. Kh1 axb4 34. Qg7#)) 28. axb4 $40 {[%emt 0:00:00][%mdl 128] White attacks.} ({White should play} 28. Re3 $1 $16 {[%cal Re3g3] Rg3 would kill now.} Nxe5 (28... Rxa3 29. Rg3 Rxa1+ 30. Kh2) 29. Rxe5) 28... Rxa1 $1 $11 {[%emt 0:00:12]} 29. Rxa1 {[%emt 0:00:02] Hoping for Qh7+.} Kf8 $2 {[%emt 0:00:10]} (29... f6 $11 {and Black has nothing to worry.} 30. Qh7+ Kf8 31. Bh6+ Nxh6 32. Qxh6+ Ke7 33. Qg7+ Kd8 34. Ra8+ Nb8 35. Qxf6+ Kc8) 30. f4 $2 {[%emt 0:00:17]} ({Better is} 30. Qh8 $18 {aiming for Bh7.} f6 31. exf6 (31. Bxf6 $2 Ndxf6 32. exf6 Qf7 $19) 31... Ndxf6 32. Bxf6) 30... Rb8 $2 {[%emt 0:00:02][%mdl 8192] White now steadily converts the win.} (30... Nxe5 $1 $17 {stays on course. Threatens to win with ...Ng6.} 31. fxe5 Qxe5) 31. Kh1 {[%emt 0:00:12]} (31. Qh8 $142 f5 (31... Re8 $2 32. Bh7 $18) 32. exf6 Ndxf6 33. Bxf6) 31... Qc8 $2 {[%emt 0:00:04]} (31... f6 32. exf6 Ndxf6) 32. f5 {[%emt 0:00:06]} Ra8 {[%emt 0:00:03][%cal Bb8a8,Ba8a2,Ba2a1][%mdl 32]} 33. Rf1 {[%emt 0:00:02][%cal Ba1f1,Bf1f5,Bf5e5][%mdl 32]} Bxf5 {[%emt 0:00:08]} 34. Rxf5 {[%emt 0:00:10]} Ra2 {[%emt 0:00:03]} 35. Bd3 {[%emt 0:00:32]} Ra1+ {[%emt 0:00:03]} 36. Kh2 {[%emt 0:00:02] Qh8 is the strong threat.} Bc7 {[%emt 0:00:05]} 37. Qh7 {[%emt 0:00:14]} (37. Rxf7+ $142 Kxf7 38. Qh7+ Kf8 39. Bh6+ (39. Qf5+ Ngf6 $18) 39... Nxh6 40. Qxh6+ Ke7 41. Qg7+ Kd8 42. Qg5+ Ke8 43. Bg6+ Kf8 44. Qf4+ (44. Qh6+ Ke7 45. Qh7+ Kd8 46. Qg8+ Nf8 47. Qxf8+ Kd7 48. Bf5#) 44... Kg7 45. Qf7+ Kh6 46. Qh7+ Kg5 47. Qh5+ Kf4 48. Qh6#) 37... Nxe5 {[%emt 0:00:07]} 38. dxe5 {[%emt 0:00:07]} Bxe5+ {[%emt 0:00:01]} 39. Rxe5 {[%emt 0:00:03] White mates.} Qc7 {[%emt 0:00:03]} 40. Bh6+ {[%emt 0:00:09]} Nxh6 {[%emt 0:00:08]} 41. Qxh6+ {[%emt 0:00:02]} Kg8 {[%emt 0:00:01]} 42. Bh7+ {[%emt 0:00:02]} Kh8 {[%emt 0:00:01]} 43. Bg6+ {[%emt 0:00:05]} Kg8 {[%emt 0:00:02]} 44. Qh7+ {[%emt 0:00:02]} Kf8 {[%emt 0:00:01]} 45. Qh8# {[%emt 0:00:01] Weighted Error Value: White=0.73/Black=1.10.  Loses game:     	---       	Black=3      Missed win:     	White=2     	---        Mistake:       	White=7     	Black=4      Inaccurate:     	White=2     	Black=3      OK:         	White=8     	Black=3      Best:        	---       	Black=2      Strong:       	---       	Black=1} 1-0